[Event "44th Chess Olympiad Open 2022"]
[Site "Chennai"]
[Date "2022.08.03"]
[Round "6.22"]
[White "Murshed, Niaz"]
[Black "Rasmussen, Allan Stig"]
[Result "1-0"]
[WhiteElo "2413"]
[BlackElo "2550"]
[Annotator "TA"]
[PlyCount "125"]
[EventDate "2022.??.??"]
[TimeControl "60"]

{[%evp 15,125,29,47,22,22,25,23,22,23,0,0,0,19,14,15,0,22,12,48,43,42,42,42,51,
49,45,36,41,46,0,10,0,0,-47,-38,-36,-46,-39,-52,-61,-50,-38,0,0,0,0,0,0,0,0,76,
84,75,81,83,60,115,109,137,130,179,41,34,0,0,0,83,81,43,12,49,0,36,55,557,557,
551,557,733,679,943,915,833,802,3411,1703,3393,2458,2558,2477,2147,1827,2103,
2029,1586,1353,29973,517,29972,29973,29971,29974,29974,29975,29975,29976,29984,
29979,29986,29987,29987,29988]} 1. Nf3 {[%emt 0:00:44]} f5 {[%emt 0:00:01]} 2.
c4 {[%emt 0:04:37]} Nf6 {[%emt 0:00:26]} 3. g3 {[%emt 0:00:13]} g6 {[%emt 0:00:
00]} 4. Bg2 {[%emt 0:00:42]} Bg7 {[%emt 0:00:14]} 5. O-O {[%emt 0:00:17]} d6 {
[%emt 0:00:35]} 6. d4 {[%emt 0:01:02]} O-O {[%emt 0:00:08]} 7. Nc3 {[%emt 0:00:
00]} c6 {[%emt 0:05:01] is now more promising than 7...Qe8.} 8. Rb1 {[%emt 0:
00:00]} a5 {[%emt 0:00:00]} 9. d5 {A88: Dutch Defence: Leningrad System: 5 Nf3
0-0 6 0-0 d6 7 Nc3 c6.} e5 {[%emt 0:00:00]} 10. dxe6 Bxe6 {[%emt 0:00:54]} 11.
b3 {[%emt 0:00:40] White has an edge.} Na6 {[%emt 0:04:47]} 12. Bf4 Nh5 {
[%emt 0:02:02]} 13. Bg5 Qc7 {[%emt 0:08:33]} 14. Qd2 Nc5 {[%emt 0:09:35]} 15.
Nd4 {[%emt 0:08:25][%cal Yf3d4,Yd4e2,Ye2f4] [#]} Bd7 $146 {[%emt 0:00:00]} ({
Predecessor:} 15... Rae8 16. Nxe6 Rxe6 17. Be3 {½-½ (17) Temirbayev,S (2490)
-Malaniuk,V (2552) Tula 1999}) 16. Bh6 Rae8 {[%emt 0:00:50]} 17. Bxg7 Kxg7 {
[%emt 0:07:20]} 18. Rbd1 Bc8 {[%emt 0:03:01]} 19. e3 Nf6 {[%emt 0:07:54]} 20.
Nde2 {[%emt 0:44:01]} Rd8 {[%emt 0:02:54]} 21. Nf4 {[%emt 0:05:00]} h6 {
[%emt 0:00:00]} 22. h4 {[%emt 0:00:00]} (22. Rfe1 $14 {was preferrable.}) 22...
Rfe8 {[%emt 0:01:03]} 23. Qd4 {[%emt 0:07:39][%cal Yd4f6] Hoping for Qxf6+!}
Qe7 {[%emt 0:06:49]} 24. Bh3 {[%emt 0:14:03]} (24. Nce2 $11 {might be stronger.
}) 24... Kf7 $15 {[%emt 0:02:43]} 25. Bg2 {[%emt 0:05:32]} g5 {[%emt 0:02:22]}
26. hxg5 {[%emt 0:00:37]} hxg5 {[%emt 0:00:04]} 27. Nh3 {[%emt 0:00:03]} Kg6 {
[%emt 0:03:34]} 28. Rde1 {[%emt 0:01:42]} (28. Nxg5 $2 Kxg5 29. Ne2 Rh8 $19)
28... Nce4 {[%emt 0:13:31] ...Rh8 is the strong threat.} 29. f4 $1 {[%emt 0:00:
00]} c5 {[%emt 0:03:46]} 30. Qd3 {[%emt 0:00:17] Black must now prevent Nxg5.}
g4 {[%emt 0:01:08]} 31. Ng5 $1 $36 {[%emt 0:03:09] White fights for an
advantage.} Nxg3 {[%emt 0:01:10]} 32. Rf2 {[%emt 0:00:25]} Nge4 {[%emt 0:00:00]
} (32... Qg7 $11) 33. Bxe4 $16 {[%emt 0:01:07]} fxe4 {[%emt 0:00:18]} 34. Qd2 {
[%emt 0:00:30] White is much more active.} Rh8 {[%emt 0:01:22]} 35. Nd5 {
[%emt 0:00:51]} Nxd5 {[%emt 0:02:57]} (35... Qf8 $14) 36. Qxd5 {[%emt 0:00:05]
[%cal Yg5f7]} Bf5 {[%emt 0:00:59]} 37. Rh2 {[%emt 0:01:28]} Qf6 {[%emt 0:05:54]
} (37... Qd7 $16 38. Rd1 (38. Nxe4 Bxe4 39. Qxe4+ Qf5 $11) (38. Ree2 Rc8 $16)
38... Rxh2 39. Kxh2 Kg7) 38. Rxh8 {[%emt 0:00:05]} (38. Nxe4 Bxe4 39. Qxe4+ Qf5
$11) ({White should try} 38. Rd1 $1 $18) 38... Rxh8 $14 {[%emt 0:00:05]} 39.
Rd1 {[%emt 0:00:22][%cal Ye1d1,Yd1d6,Yd6f6]} (39. Rb1 $5 {[%cal Rg1g2]}) 39...
g3 $1 {[%emt 0:00:54][%cal Yh8h1] ( -> ...Rh1+!)} 40. Qxd6 {[%emt 0:00:00]
Threatens to win with Kg2. The board is on fire.} Qxd6 {[%emt 0:00:48]} (40...
Rh2 $11 {keeps the balance.}) 41. Rxd6+ $11 {[%emt 0:30:09] Endgame KRB-KRN}
Kh5 {[%emt 0:05:39]} 42. Nf7 {[%emt 0:00:00]} (42. Rf6 $5 {[%cal Rg5f7]} Bd7
43. Rf7 $16 (43. Nxe4 Kg4 $11)) 42... Rh7 {[%emt 0:00:35]} 43. Ng5 {[%emt 0:00:
00]} (43. Ne5 $5 {[%cal Rd6d5]}) 43... Rh8 {[%emt 0:03:42]} 44. Rf6 {[%emt 0:
00:00]} Kg4 $2 {[%emt 0:06:15] Black cannot hold the game after this.} (44...
Bd7 $14) 45. Nf7 $18 {[%emt 0:00:00]} Rh5 {[%emt 0:02:05] [#]} 46. Rh6 $1 {
[%emt 0:00:57]} (46. Nh6+ Kf3 47. Nxf5 g2 $15) 46... b6 {[%emt 0:03:02]} 47.
Kg2 {[%emt 0:00:37]} a4 {[%emt 0:06:09]} 48. Rxh5 {[%emt 0:01:43]} ({Less
strong is} 48. Ne5+ Kh4 49. Rxh5+ (49. Rxb6 axb3 50. a4 Bh3+ 51. Kh1 Bg4 $11)
49... Kxh5 $18) 48... Kxh5 {[%emt 0:00:02]} 49. Kxg3 {[%emt 0:00:07]} axb3 {
[%emt 0:02:14]} 50. axb3 {[%emt 0:00:05] aiming for Nd6. KB-KN} Bg4 {[%emt 0:
01:42]} 51. Nd6 {[%emt 0:00:26] And now f5 would win.} Bd1 {[%emt 0:00:04]} 52.
Nxe4 {[%emt 0:00:19]} Bxb3 {[%emt 0:00:02]} 53. Nd6 {[%emt 0:00:47]} Kg6 {
[%emt 0:00:55]} 54. f5+ {[%emt 0:00:12]} Kg5 {[%emt 0:00:00]} 55. e4 {[%emt 0:
00:07]} Bd1 {[%emt 0:03:44]} 56. Kf2 {[%emt 0:01:58]} (56. e5 $142 Be2 57. f6
Bh5 58. f7 Bxf7 59. Nxf7+ Kf5 60. Kf3 Ke6 {[#]} 61. Ke4 $1) 56... Kf4 {[%emt 0:
00:46]} (56... Kf6 $18 57. Ke3 Ke5 58. Nf7+ Kf6) 57. f6 {[%emt 0:00:11] White
mates.} Bh5 {[%emt 0:00:03]} 58. f7 {[%emt 0:00:02]} Bxf7 {[%emt 0:00:12]} 59.
Nxf7 {[%emt 0:00:03]} Kxe4 {[%emt 0:00:25]} 60. Ke2 {[%emt 0:01:10]} b5 {
[%emt 0:01:26]} 61. Nd6+ {[%emt 0:00:45]} Kd4 {[%emt 0:00:00]} 62. cxb5 {
[%emt 0:00:03]} Kd5 {[%emt 0:00:19] [#]} 63. Nc4 $1 {[%emt 0:00:00] Weighted
Error Value: White=0.23 (precise) /Black=0.62} 1-0

[Event "44th Chess Olympiad Open 2022"]
[Site "Chennai"]
[Date "2022.08.03"]
[Round "6.23"]
[White "Blomqvist, Erik"]
[Black "Tologontegin, Semetey"]
[Result "1/2-1/2"]
[WhiteElo "2521"]
[BlackElo "2378"]
[Annotator "TA"]
[PlyCount "103"]
[EventDate "2022.??.??"]
[TimeControl "60"]

{[%evp 10,103,7,19,24,20,19,6,40,34,27,30,36,23,54,39,28,23,46,31,43,35,53,55,
54,60,50,50,62,59,52,45,77,81,81,58,60,60,60,60,60,62,61,60,58,0,55,53,70,75,
91,91,93,91,107,95,82,91,229,207,209,-77,-77,-78,-79,-76,-76,-76,-76,-76,-76,
-76,-76,-145,-23,-24,-13,-18,-3,-75,-75,-75,-75,-75,-75,-75,-75,-75,-75,-75,
-75,-75,0,0,0,-75]} 1. e4 {[%emt 0:00:06]} e5 {[%emt 0:00:07]} 2. Nc3 {[%emt 0:
00:00]} Nf6 {[%emt 0:01:49]} 3. Bc4 {[%emt 0:00:20]} Nc6 {[%emt 0:02:25]} 4. d3
{[%emt 0:00:16]} Na5 {[%emt 0:01:53]} 5. Bb3 {[%emt 0:00:34]} Nxb3 {[%emt 0:00:
00]} 6. axb3 {[%emt 0:00:12]} Bc5 {[%emt 0:01:20] C28: Vienna Game: 2...Nf6 3
Bc4 Nc6.} 7. f4 {[%emt 0:12:50]} d6 {[%emt 0:17:34] aiming for ...Ng4.} 8. h3 {
[%emt 0:09:03] [#] Prevents Ng4.} h6 $146 {[%emt 0:10:50]} ({Predecessor:} 8...
c6 9. Qf3 Qb6 10. Na4 Qa5+ 11. Bd2 Bb4 12. c3 b5 13. cxb4 Qa6 14. fxe5 dxe5 {
1-0 (46) Koc,D (1540)-Yildiz,E (1777) Istanbul 2018}) 9. Qf3 {[%emt 0:14:43]}
Qe7 {[%emt 0:13:51]} 10. Nge2 {[%emt 0:00:00][%cal Yg1e2,Ye2g3,Yg3f5]} Bd7 {
[%emt 0:00:24]} 11. g4 {[%emt 0:05:48]} Bc6 {[%emt 0:10:29]} 12. fxe5 {[%emt 0:
11:57]} dxe5 {[%emt 0:00:27]} 13. Be3 {[%emt 0:05:37]} Nd7 {[%emt 0:00:00]} 14.
h4 {[%emt 0:05:15]} a6 {[%emt 0:11:27]} 15. Ng3 {[%emt 0:08:14]} O-O-O {
[%emt 0:01:24]} 16. O-O-O {[%emt 0:01:20]} Bxe3+ {[%emt 0:05:30]} 17. Qxe3 {
[%emt 0:00:02]} Nc5 {[%emt 0:00:04]} 18. Nf5 {[%emt 0:02:20][%csl Ye7,Yg7]} Qf8
{[%emt 0:00:43]} 19. Qg3 {[%emt 0:00:36]} f6 {[%emt 0:03:06]} 20. g5 {[%emt 0:
00:49]} Ne6 {[%emt 0:02:12][%cal Rh6g5]} 21. gxh6 {[%emt 0:01:01]} gxh6 {
[%emt 0:00:05]} 22. Rhg1 {[%emt 0:00:23]} Kb8 {[%emt 0:00:18]} 23. Qe3 {
[%emt 0:02:44]} Rd7 {[%emt 0:06:50]} 24. Rdf1 {[%emt 0:02:08]} Rf7 {[%emt 0:00:
00]} 25. Rg3 {[%emt 0:01:29]} Bd7 {[%emt 0:00:38]} 26. Nd5 {[%emt 0:03:20]
Against Nf4. Pair of Knights!} Bc6 {[%emt 0:00:12]} 27. Nc3 {[%emt 0:01:26]}
Bd7 $1 {[%emt 0:00:04]} 28. Ne2 $1 {[%emt 0:03:23]} Nd8 {[%emt 0:04:05]} 29.
Rg6 {[%emt 0:00:20][%cal Rf5h6,Yg3g6,Yg6h6,Yh6h7] White is much more active.}
Bxf5 {[%emt 0:00:12]} 30. Rxf5 {[%emt 0:01:28]} Nc6 {[%emt 0:00:01] And now ...
Ne7 would win.} 31. Qf2 {[%emt 0:04:22][%cal Rg6f6]} Ne7 {[%emt 0:00:00][%csl
Yf5,Yg6]} 32. Rfxf6 {[%emt 0:00:06]} Rhh7 {[%emt 0:00:04]} 33. Rxh6 {[%emt 0:
00:32]} Ng8 {[%emt 0:00:59]} (33... Rhg7 $16 34. Rh8 Qxh8 35. Rxf7 Rxf7 36.
Qxf7 Qxh4 37. Qf8+ Ka7) 34. Rxh7 $18 {[%emt 0:00:35]} Rxf6 {[%emt 0:00:04] [#]}
35. Qg3 {[%emt 0:03:56]} ({Only move:} 35. Qg2 $1 $18 {Rh8 is the strong
threat.} Ne7 36. Qg7 Rf1+ 37. Kd2) 35... Rf1+ $17 {[%emt 0:00:00]} 36. Kd2 {
[%emt 0:00:01]} Nf6 $36 {[%emt 0:00:10][%cal Yg8f6,Yf6h5,Yh5g3] Black is
really pushing.} 37. Rg7 {[%emt 0:00:51] Black must now prevent Rg5.} Nh5 $1 {
[%emt 0:00:53][%csl Yg3,Yg7]} 38. Rg8 {[%emt 0:00:00]} Nxg3 {[%emt 0:00:04]}
39. Rxf8+ {[%emt 0:00:04]} Rxf8 {[%emt 0:00:03]} 40. Nxg3 {[%emt 0:00:04]
Endgame KR-KN} Rf2+ {[%emt 0:00:30]} 41. Kc3 {[%emt 0:30:57] [#]} (41. Kc1 $142
) 41... Rh2 {[%emt 0:08:05]} (41... c5 $1 $17 {Strongly threatening ...b5.} 42.
Nf5 Kc7) 42. Nf5 $11 {[%emt 0:00:00]} c5 {[%emt 0:18:34]} 43. Ne3 {[%emt 0:00:
00]} Rxh4 {[%emt 0:00:05]} 44. b4 {[%emt 0:00:00]} (44. Kc4 $11 {remains equal.
}) 44... cxb4+ $17 {[%emt 0:00:20]} 45. Kxb4 {[%emt 0:00:00]} Kc7 {[%emt 0:01:
11]} 46. Nc4 {[%emt 0:00:00]} Rh2 {[%emt 0:01:15]} 47. Kc3 {[%emt 0:00:00]} Rh5
{[%emt 0:00:04]} 48. b4 {[%emt 0:00:00]} b6 {[%emt 0:00:25]} 49. Kb2 {[%emt 0:
00:00]} Kc6 {[%emt 0:00:18]} 50. Kb3 {[%emt 0:00:00]} Kb5 {[%emt 0:01:49]} (
50... Rg5 $17) 51. Nd6+ {[%emt 0:00:00]} (51. Na3+ $11 Kc6 52. Nc4) 51... Kc6 {
[%emt 0:00:06]} 52. Nc4 $1 {[%emt 0:00:00] Weighted Error Value: White=0.20 
(precise) /Black=0.15 (very precise)} 1/2-1/2

[Event "44th Chess Olympiad Open 2022"]
[Site "Chennai"]
[Date "2022.08.03"]
[Round "6.23"]
[White "Westerberg, Jonathan"]
[Black "Abdyjapar, Asyl"]
[Result "0-1"]
[WhiteElo "2476"]
[BlackElo "2306"]
[Annotator "TA"]
[PlyCount "93"]
[EventDate "2022.??.??"]
[TimeControl "60"]

{[%evp 20,93,0,-24,-13,-6,0,-37,-33,-35,-43,-68,-65,-60,-66,-56,8,8,11,-116,
-95,-87,-96,-102,-94,-75,-72,-153,-152,-139,-152,-131,-121,-147,-156,-191,-144,
-147,-142,-151,-163,-486,-472,-488,-471,-471,-476,-522,-533,-483,-331,-476,
-420,-485,-475,-513,-506,-814,-811,-841,-841,-794,-783,-5214,-5206,-5202,-5197,
-5118,-4762,-2301,-852,-949,-926,-946,-883,-29992]} 1. e4 {[%emt 0:00:40]} e5 {
[%emt 0:00:04]} 2. Nf3 {[%emt 0:00:12]} Nc6 {[%emt 0:00:02]} 3. Bc4 {[%emt 0:
00:00]} Bc5 {[%emt 0:00:03]} 4. c3 {[%emt 0:00:20]} Nf6 {[%emt 0:00:04]} 5. d3
{[%emt 0:00:29]} d6 {[%emt 0:00:06]} 6. b4 {[%emt 0:00:16]} Bb6 {[%emt 0:00:03]
} 7. a4 {[%emt 0:00:38]} a5 {[%emt 0:00:14]} 8. b5 {[%emt 0:01:11]} Ne7 {
[%emt 0:00:10]} 9. O-O {[%emt 0:01:06]} O-O {[%emt 0:01:00]} 10. Nbd2 {[%emt 0:
00:00]} Ng6 {[%emt 0:01:33]} 11. Ba2 {[%emt 0:01:11]} d5 {[%emt 0:04:47] C54:
Giuoco Piano: 4 c3 Nf6, main lines with 5 d4 and 5 d3.} 12. Ba3 {[%emt 0:03:22]
} Re8 {[%emt 0:03:18]} 13. exd5 {[%emt 0:03:00]} (13. c4 $5 {[%cal Rc4d5]})
13... Nxd5 {[%emt 0:00:00] Black is slightly better.} 14. Ne4 {[%emt 0:00:07]}
h6 {[%emt 0:00:38] [#]} 15. Re1 $146 {[%emt 0:06:47]} ({Predecessor:} 15. c4
Nb4 16. c5 Nxa2 17. cxb6 Nb4 18. bxc7 Qxc7 19. Rb1 Nf4 20. Bxb4 axb4 21. Rxb4 {
1-0 (59) Florian,J-Schmid,W GER corr 1999}) 15... Ndf4 {[%emt 0:10:20]} 16. d4
{[%emt 0:06:21]} (16. Qb3 $2 Be6 17. Qb1 Bxa2 18. Rxa2 Qd7 $19) 16... Bg4 {
[%emt 0:28:39][%cal Yf4g2] ...Nxg2! is the strong threat.} 17. h3 $1 {[%emt 0:
00:00]} (17. Qb3 Qd7 18. c4 Bxd4 19. Nxd4 exd4 $19) 17... Be6 {[%emt 0:00:00]}
({Better is} 17... Bxf3 $15 18. Qxf3 Nh4) 18. Bxe6 $11 {[%emt 0:00:48]} Rxe6 {
[%emt 0:04:30]} 19. Ng3 {[%emt 0:01:27]} (19. g3 $11 Nxh3+ 20. Kh2 exd4 21.
Kxh3) 19... exd4 {[%emt 0:01:27]} 20. cxd4 {[%emt 0:00:45]} Qd5 {[%emt 0:01:04]
[%cal Yf4g2] Black is more active.} 21. Rxe6 {[%emt 0:05:00]} fxe6 {[%emt 0:00:
00][%cal Yf7e6,Ye6e5,Ye5d4,Yd4d3]} (21... Nxe6 22. Ne2 $15) 22. Qc2 {[%emt 0:
00:43]} e5 {[%emt 0:02:47]} 23. Bc5 {[%emt 0:11:37]} (23. Qe4 $142) 23... exd4
$17 {[%emt 0:04:33]} 24. Bxb6 {[%emt 0:00:06]} cxb6 {[%emt 0:00:25]} 25. Qe4 {
[%emt 0:00:05] Against Ne5} Rd8 {[%emt 0:03:11][%cal Ya8d8,Yd8d5,Yd5d4]} 26.
Re1 {[%emt 0:04:55]} d3 {[%emt 0:03:20]} 27. Nd2 {[%emt 0:00:00] [#]} Nh4 $1 {
[%emt 0:06:04]} 28. Qxd5+ {[%emt 0:00:44]} Rxd5 {[%emt 0:00:00]} ({Stronger
than} 28... Nxd5 29. Re4 g5 30. Ngf1 $17 (30. Rd4 Nxg2 31. Nh5 Kf7 $17)) 29.
Re7 {[%emt 0:00:31]} Nfxg2 {[%emt 0:04:27]} 30. Rxb7 $2 {[%emt 0:00:10] [#]} (
30. Nge4) 30... Ne1 $1 $19 {[%emt 0:01:40]} 31. Kf1 {[%emt 0:06:17]} ({
Inferior is} 31. Rb8+ Kh7 32. Nge4 Nef3+ 33. Nxf3 Nxf3+ 34. Kg2 d2 $19) 31...
Nef3 {[%emt 0:00:41]} 32. Nge4 {[%emt 0:00:31]} Rd4 {[%emt 0:00:00]} 33. Rc7 {
[%emt 0:02:07]} Rxa4 {[%emt 0:00:26]} 34. Rc1 {[%emt 0:00:02] Inhibits Ra1.}
Rb4 {[%emt 0:03:18]} 35. Rd1 {[%emt 0:00:03]} (35. Rc3 $142) 35... Ne5 {
[%emt 0:00:44]} 36. Nc3 {[%emt 0:02:04]} Nhg6 {[%emt 0:02:21] Black is clearly
winning.} 37. f3 {[%emt 0:08:34]} Nf4 {[%emt 0:00:37]} 38. h4 {[%emt 0:00:01]}
(38. Re1 $142 Nc4 39. Nxc4 Rxc4 40. Re8+ Kh7 41. Nd1) 38... Nc4 {[%emt 0:00:27]
Strongly threatening ...Ne3+.} 39. Nxc4 {[%emt 0:00:23]} Rxc4 {[%emt 0:00:05]
Endgame KRN-KRN} 40. Ne4 {[%emt 0:00:11]} Rc2 {[%emt 0:00:58]} 41. Rd2 {
[%emt 0:08:36]} a4 {[%emt 0:01:01][%cal Ya5a4,Ya4a3,Ya3a2]} 42. Kf2 {[%emt 0:
00:01]} a3 {[%emt 0:00:10]} 43. Ke3 {[%emt 0:00:00]} a2 {[%emt 0:03:03]} 44.
Rd1 {[%emt 0:00:40]} Nd5+ {[%emt 0:00:24]} (44... Ne2 $142 45. Ra1 Nc1) 45. Kd4
{[%emt 0:00:51]} Nb4 {[%emt 0:00:12][%cal Yd3d2] Threatens to win with ...d2!}
46. Nc3 {[%emt 0:00:03]} d2 {[%emt 0:00:00] ( -> ...Rc1)} 47. Nb1 {[%emt 0:01:
48] Weighted Error Value: White=0.63/ Black=0.13 (very precise)} 0-1

[Event "44th Chess Olympiad Open 2022"]
[Site "Chennai"]
[Date "2022.08.03"]
[Round "6.23"]
[White "Markov, Mikhail"]
[Black "Hillarp Persson, Tiger"]
[Result "1/2-1/2"]
[WhiteElo "2333"]
[BlackElo "2516"]
[Annotator "TA"]
[PlyCount "74"]
[EventDate "2022.??.??"]
[TimeControl "60"]

{[%evp 13,74,20,58,12,21,0,27,-39,-29,-32,-20,-39,-56,-45,-39,-45,-27,-23,-27,
-28,-23,-39,0,-17,0,-19,-20,-22,0,-14,26,22,32,26,55,19,34,35,54,51,54,54,68,
56,56,58,69,24,51,19,51,51,51,51,52,51,51,51,51,51,51,48,48]} 1. d4 {[%emt 0:
00:00]} Nf6 {[%emt 0:01:21]} 2. Nf3 {[%emt 0:00:25]} e6 {[%emt 0:00:56]} 3. c4
{[%emt 0:02:07]} d5 {[%emt 0:02:01]} 4. g3 {[%emt 0:01:04]} Be7 {[%emt 0:04:12]
} 5. Bg2 {[%emt 0:00:20]} O-O {[%emt 0:00:09]} 6. O-O {[%emt 0:01:00]} dxc4 {
[%emt 0:01:28]} 7. Ne5 {[%emt 0:02:10]} Qd6 {[%emt 0:03:45]} 8. Nxc4 {[%emt 0:
00:00] 8.Na3 is the hot move. E05: Open Catalan: 5 Nf3 Be7.} (8. Na3 $1 $14 {
is superior.}) 8... Qa6 $1 $11 {[%emt 0:00:08]} 9. Qc2 {[%emt 0:02:10]} Nc6 {
[%emt 0:06:46]} 10. Rd1 {[%emt 0:08:17]} (10. e3 $11) 10... Rd8 $1 $15 {
[%emt 0:02:48]} 11. e3 {[%emt 0:00:45] [#]} e5 $146 {[%emt 0:09:02]} ({
Predecessor:} 11... Nb4 12. Qb3 Bd7 13. Nc3 Rab8 14. a3 Nbd5 15. Ne5 Be8 16. e4
Nxc3 17. Qxc3 c5 {1-0 (65) Dizdarevic,E (2486)-Kiriakov,P (2553) Playchess.com
INT 2003}) 12. Nxe5 {[%emt 0:15:10]} Nxe5 {[%emt 0:03:10]} 13. dxe5 {[%emt 0:
00:00] [#]} Bf5 $1 {[%emt 0:05:28]} 14. Qb3 {[%emt 0:02:53]} Rxd1+ {[%emt 0:00:
00]} 15. Qxd1 {[%emt 0:00:03]} Rd8 {[%emt 0:00:23]} 16. Bd2 {[%emt 0:14:21]}
Ne4 {[%emt 0:15:07] Black has compensation.} 17. Qc1 {[%emt 0:02:00]} c6 {
[%emt 0:07:04]} (17... Ng5 $5 {[%cal Ra6e2]} 18. Be1 (18. Qxc7 Kf8 $17) 18...
Nh3+ 19. Bxh3 Bxh3 $17) 18. Be1 {[%emt 0:02:21]} (18. Bf1 $5 {[%cal Rf1a6]} Qb6
19. Be1 $11) 18... Nc5 {[%emt 0:05:12]} (18... Ng5 {keeps more tension.} 19.
Nd2 Qe2 20. Qd1 Qxd1 21. Rxd1 Bb4) 19. Nc3 {[%emt 0:00:29][%cal Yb1c3,Yc3e2,
Ye2f4]} Bg6 {[%emt 0:01:46]} 20. e4 {[%emt 0:04:42]} b5 {[%emt 0:06:42]} 21.
Ne2 {[%emt 0:11:53]} Nd3 {[%emt 0:04:28]} 22. Qc2 {[%emt 0:00:00]} Nxe5 {
[%emt 0:00:24]} 23. Nf4 {[%emt 0:01:33]} Qb6 {[%emt 0:01:51]} 24. Rd1 {[%emt 0:
02:19]} (24. Bc3 $5 {[%cal Rc3e5]} f6 25. Nxg6 Nxg6 26. b4 $14) 24... Rxd1 {
[%emt 0:01:33]} 25. Qxd1 {[%emt 0:00:03]} a5 {[%emt 0:00:37]} 26. Bc3 {[%emt 0:
00:37]} Qc7 {[%emt 0:01:56]} 27. b3 {[%emt 0:00:49]} f6 {[%emt 0:00:00]} 28.
Nxg6 {[%emt 0:00:35]} hxg6 {[%emt 0:00:10]} 29. Bh3 {[%emt 0:00:17]} Kf8 {
[%emt 0:00:42]} 30. Be6 {[%emt 0:01:01]} Qd8 {[%emt 0:00:41]} 31. Qxd8+ {
[%emt 0:00:33]} Bxd8 {[%emt 0:00:13]} 32. Bxe5 {[%emt 0:01:10] White is
slightly better.} fxe5 $14 {[%emt 0:00:07] KB-KB} 33. Bd7 {[%emt 0:00:04]} g5 {
[%emt 0:00:38]} 34. Bxc6 {[%emt 0:00:27]} b4 $1 {[%emt 0:00:06]} 35. Kg2 {
[%emt 0:00:23]} Kf7 {[%emt 0:00:21]} 36. Kf3 {[%emt 0:00:15]} Bb6 {[%emt 0:00:
00]} 37. Kg4 {[%emt 0:01:04]} Kf6 {[%emt 0:00:12] Weighted Error Value:
White=0.12 (very precise) /Black=0.11 (very precise)} 1/2-1/2

[Event "44th Chess Olympiad Open 2022"]
[Site "Chennai"]
[Date "2022.08.03"]
[Round "6.23"]
[White "Zhakshylykov, Erzhan"]
[Black "Berg, Emanuel"]
[Result "0-1"]
[WhiteElo "2332"]
[BlackElo "2533"]
[Annotator "TA"]
[PlyCount "74"]
[EventDate "2022.??.??"]
[TimeControl "60"]

{[%evp 13,74,32,24,20,29,36,29,34,27,22,21,16,18,-14,0,6,6,4,29,11,24,0,22,-41,
-42,-47,-42,-55,-29,-161,-154,-177,-181,-191,-193,-197,-172,-173,-183,-185,
-199,-219,-233,-225,-183,-209,-191,-187,-143,-345,-352,-593,-616,-665,-650,
-759,-528,-533,-533,-533,-513,-518,-505]} 1. d4 {[%emt 0:00:04]} Nf6 {[%emt 0:
00:00]} 2. c4 {[%emt 0:00:15]} g6 {[%emt 0:00:09]} 3. Nf3 {[%emt 0:00:37][%cal
Yg1f3,Yf3e1,Ye1d3]} Bg7 {[%emt 0:00:06]} 4. g3 {[%emt 0:00:08]} O-O {[%emt 0:
00:17]} 5. Bg2 {[%emt 0:00:05]} d6 {[%emt 0:00:05]} 6. O-O {[%emt 0:00:00]} c6
{[%emt 0:00:05]} 7. Nc3 {[%emt 0:00:24]} Qa5 {[%emt 0:00:20] 7...Bf5 might
become the main line.} 8. Ne1 {[%emt 0:07:48] E62: King's Indian: Fianchetto:
6...c6 and Panno Variation (6...Nc6) without ...a6.} Be6 {[%emt 0:00:00]} 9. d5
{[%emt 0:05:29]} cxd5 {[%emt 0:01:42]} 10. cxd5 {[%emt 0:00:07] White has an
edge.} Bd7 {[%emt 0:03:12]} 11. Nd3 {[%emt 0:08:14]} Na6 {[%emt 0:00:00]} (
11... Ng4 {keeps more tension.} 12. Bf4 Rc8 13. e4 Qb6) 12. Bd2 {[%emt 0:04:15]
} Rfc8 {[%emt 0:03:44] [#]} (12... Ng4 {is interesting.} 13. e4 Rfc8 14. Rb1
Qd8) 13. a4 $146 {[%emt 0:07:01][%cal Yb2b4]} ({Predecessor:} 13. a3 Qd8 14. b4
Nc7 15. Qb3 Nb5 16. Nxb5 Bxb5 17. Rac1 Qd7 18. Nf4 Rxc1 19. Rxc1 {0-1 (34)
Pohjala,H (2338)-Kulaots,K (2581) Jyvaskyla 2013}) 13... Qd8 {[%emt 0:05:30]} (
13... Ng4 {is more complex.} 14. Bg5 Qd8 15. Ne4 Qe8) 14. h3 {[%emt 0:06:47]}
Ne8 {[%emt 0:16:30]} 15. e4 {[%emt 0:16:36]} Nac7 {[%emt 0:00:00]} 16. Re1 {
[%emt 0:08:49]} a5 {[%emt 0:05:56]} 17. Qb3 {[%emt 0:08:40]} Rcb8 {[%emt 0:02:
44]} 18. Nb5 {[%emt 0:05:56]} ({White should try} 18. h4 $11) 18... Nxb5 $15 {
[%emt 0:01:48]} 19. axb5 {[%emt 0:00:05]} Qb6 {[%emt 0:00:25]} 20. Bf1 {
[%emt 0:00:10]} Qxb5 {[%emt 0:09:50]} ({Resist} 20... Bxb5 21. Be3 Qa6 22. Nb4
axb4 23. Rxa6 bxa6 24. Bxb5 Rxb5 25. f3 $16) 21. Qa2 {[%emt 0:08:58] [#]} (21.
Qa3 $11 {and White stays safe.}) 21... Bxh3 $1 $19 {[%emt 0:01:23]} 22. Be2 {
[%emt 0:04:08] [#]} (22. Qa4 Qxa4) 22... Bg4 $1 {[%emt 0:03:04]} 23. Bf1 {
[%emt 0:00:23][%cal Yd3e5]} (23. Qa4 Qxa4) 23... Qd7 {[%emt 0:01:17]} 24. Qb3 {
[%emt 0:02:25]} a4 {[%emt 0:02:28]} 25. Qb4 {[%emt 0:00:00]} Nc7 {[%emt 0:01:
32][%cal Ye8c7,Yc7a6,Ya6c5]} 26. Rac1 {[%emt 0:00:50]} b5 {[%emt 0:01:24]} 27.
Rc6 {[%emt 0:01:00]} Na6 {[%emt 0:00:00]} 28. Qa3 {[%emt 0:00:10]} Rc8 {
[%emt 0:01:21]} 29. Rec1 {[%emt 0:00:27]} Qd8 {[%emt 0:02:16]} 30. Nb4 {
[%emt 0:03:12]} Nc5 {[%emt 0:01:03]} 31. f3 $2 {[%emt 0:00:16] Loses the game.}
(31. Be3 $17) 31... Bd7 {[%emt 0:00:20]} 32. Bxb5 $2 {[%emt 0:00:13]} (32. Rxc8
{was worth a try.} Rxc8 33. Be3) 32... Bxc6 {[%emt 0:01:43] Black is clearly
winning.} 33. Nxc6 {[%emt 0:01:13]} Qb6 {[%emt 0:00:02][%csl Yb5,Ye4]
Threatens to win with ...Nb3+.} 34. Rxc5 {[%emt 0:00:23]} Bf8 {[%emt 0:01:56]}
({Inferior is} 34... Qxc5+ 35. Qxc5 dxc5 36. Nxe7+ Kf8 37. Nxc8 Rxc8 38. Bxa4
$17) 35. Be3 {[%emt 0:00:36][%cal Yc6e7] Strongly threatening Nxe7+!} dxc5 {
[%emt 0:00:06]} 36. Qxc5 {[%emt 0:00:38]} Qxc5 {[%emt 0:00:19]} 37. Bxc5 {
[%emt 0:00:02] [#]} Ra5 $1 {[%emt 0:00:16] Weighted Error Value: White=0.40/
Black=0.13 (very precise)} 0-1